Workbook

Sheet 1
A1: Школа | B1: МБОУ Лицей №188 | E1: Отд./корп | I1: День | J1: 21.02.2023
A3: Прием пищи | B3: Раздел | C3: № рец. | D3: Блюдо | E3: Выход, г | F3: Цена | G3: Калорийность | H3: Белки | I3: Жиры | J3: Углеводы
A4: Завтрак | B4: ='[1]6-11, 20-25 фев.'!B12 -> гор.блюдо | C4: ='[1]6-11, 20-25 фев.'!C12 -> ТТК 2021 | D4: ='[1]6-11, 20-25 фев.'!D12 -> Жаркое из птицы | E4: ='[1]6-11, 20-25 фев.'!E12 -> 190 | G4: ='[1]6-11, 20-25 фев.'!G12 -> 265.00 | H4: ='[1]6-11, 20-25 фев.'!H12 -> 13.52 | I4: ='[1]6-11, 20-25 фев.'!I12 -> 13.68 | J4: ='[1]6-11, 20-25 фев.'!J12 -> 21.91
B5: ='[1]6-11, 20-25 фев.'!B13 -> гор.напиток | C5: ='[1]6-11, 20-25 фев.'!C13 -> ТТК 2021г | D5: ='[1]6-11, 20-25 фев.'!D13 -> Компот из замороженной компотной смеси | E5: ='[1]6-11, 20-25 фев.'!E13 -> 200 | G5: ='[1]6-11, 20-25 фев.'!G13 -> 46.00 | H5: ='[1]6-11, 20-25 фев.'!H13 -> 0.13 | I5: ='[1]6-11, 20-25 фев.'!I13 -> 0.02 | J5: ='[1]6-11, 20-25 фев.'!J13 -> 11.15
B6: ='[1]6-11, 20-25 фев.'!B14 -> хлеб | D6: ='[1]6-11, 20-25 фев.'!D14 -> Хлеб ржано-пшеничный | E6: ='[1]6-11, 20-25 фев.'!E14 -> 20 | G6: ='[1]6-11, 20-25 фев.'!G14 -> 44.00 | H6: ='[1]6-11, 20-25 фев.'!H14 -> 1.00 | I6: ='[1]6-11, 20-25 фев.'!I14 -> 0.20 | J6: ='[1]6-11, 20-25 фев.'!J14 -> 9.00
B7: ='[1]6-11, 20-25 фев.'!B15 -> хлеб | D7: ='[1]6-11, 20-25 фев.'!D15 -> Хлеб пшеничный | E7: ='[1]6-11, 20-25 фев.'!E15 -> 15 | G7: ='[1]6-11, 20-25 фев.'!G15 -> 35.00 | H7: ='[1]6-11, 20-25 фев.'!H15 -> 1.14 | I7: ='[1]6-11, 20-25 фев.'!I15 -> 0.12 | J7: ='[1]6-11, 20-25 фев.'!J15 -> 7.38
B8: ='[1]6-11, 20-25 фев.'!B16 -> закуска | C8: ='[1]6-11, 20-25 фев.'!C16 -> № 47/2015 г | D8: ='[1]6-11, 20-25 фев.'!D16 -> Салат из квашенной капусты (без лука) | E8: ='[1]6-11, 20-25 фев.'!E16 -> 60 | G8: ='[1]6-11, 20-25 фев.'!G16 -> 51.00 | H8: ='[1]6-11, 20-25 фев.'!H16 -> 0.98 | I8: ='[1]6-11, 20-25 фев.'!I16 -> 3.05 | J8: ='[1]6-11, 20-25 фев.'!J16 -> 4.63
B9: ='[1]6-11, 20-25 фев.'!B17 -> фрукт | C9: ='[1]6-11, 20-25 фев.'!C17 -> 338/2015 | D9: ='[1]6-11, 20-25 фев.'!D17 -> Плоды свежие (яблоки) | E9: ='[1]6-11, 20-25 фев.'!E17 -> 100 | G9: ='[1]6-11, 20-25 фев.'!G17 -> 47.00 | H9: ='[1]6-11, 20-25 фев.'!H17 -> 0.40 | I9: ='[1]6-11, 20-25 фев.'!I17 -> 0.40 | J9: ='[1]6-11, 20-25 фев.'!J17 -> 9.80
A12: ИТОГО | E12: ='[1]6-11, 20-25 фев.'!E18 -> 585 | F12: ='[1]6-11, 20-25 фев.'!F18 -> 62.10 | G12: ='[1]6-11, 20-25 фев.'!G18 -> 488 | H12: ='[1]6-11, 20-25 фев.'!H18 -> 17.17 | I12: ='[1]6-11, 20-25 фев.'!I18 -> 17.47 | J12: ='[1]6-11, 20-25 фев.'!J18 -> 63.87
